bitfinex/quotes_BTCUSD_20250421
["timestamp","ask_amount","ask_price","bid_price","bid_amount"]
[1745242060809,0.11944791,87072.0,87071.0,0.35148488]
[1745242061252,0.11944791,87072.0,87071.0,0.58118248]
[1745242062193,0.11944791,87072.0,87071.0,0.34]
[1745242062395,0.12144791,87072.0,87071.0,0.34]
[1745242062754,0.11944791,87072.0,87071.0,0.34]
[1745242062953,0.12144791,87072.0,87071.0,0.34]
[1745242063275,0.12344791,87072.0,87071.0,0.34]
[1745242067889,0.004,87072.0,87071.0,0.34]
[1745242068750,0.002,87072.0,87071.0,0.34]
[1745242068925,0.003,87072.0,87071.0,0.34]
[1745242069153,0.001,87072.0,87071.0,0.34]
[1745242069407,0.09892,87077.0,87074.0,0.01148448]
[1745242069577,0.11944791,87076.0,87074.0,0.01148448]
[1745242069783,0.11944791,87076.0,87075.0,0.56968705]
[1745242071687,0.12044791,87076.0,87075.0,0.56968705]
[1745242072479,0.11944791,87076.0,87075.0,0.56968705]
[1745242073084,0.12044791,87076.0,87075.0,0.56968705]
[1745242074350,0.12044791,87076.0,87075.0,0.34]
[1745242074556,0.11944791,87076.0,87075.0,0.34]
[1745242075550,0.12044791,87076.0,87075.0,0.56968705]
[1745242078424,0.12044791,87076.0,87075.0,0.34]
[1745242079847,0.16544791,87076.0,87075.0,0.34]
[1745242080210,0.26423326,87076.0,87075.0,0.34]
[1745242080454,0.26436791,87076.0,87075.0,0.34]
[1745242081301,0.26336791,87076.0,87075.0,0.34]
[1745242081586,0.26536791,87076.0,87075.0,0.34]
[1745242083263,0.26636791,87076.0,87075.0,0.34]
[1745242083443,0.31346791,87076.0,87075.0,0.34]
[1745242084339,0.01148593,87063.0,87058.0,0.01148659]
[1745242084537,0.13093397,87062.0,87059.0,0.34]
[1745242084740,0.11944791,87062.0,87059.0,0.58121404]
[1745242085318,0.11944791,87062.0,87061.0,0.56972398]
[1745242085735,0.58970655,87076.0,87070.0,0.01148501]
[1745242085914,0.11944791,87075.0,87071.0,0.35148488]
[1745242086119,0.09908,87074.0,87071.0,0.34]
[1745242086318,0.11944791,87073.0,87071.0,0.34]
[1745242087175,0.11944791,87073.0,87071.0,0.22969579]
[1745242087379,0.11944791,87073.0,87071.0,0.22969721]
[1745242087549,0.09908,87074.0,87073.0,0.22969232]
[1745242087756,0.01148369,87080.0,87077.0,0.34]
[1745242087951,0.21852791,87079.0,87077.0,0.34]
[1745242089027,0.01148395,87078.0,87074.0,0.34]
[1745242089186,0.11944791,87077.0,87074.0,0.58117232]
[1745242090366,0.01148342,87082.0,87074.0,0.58117232]
[1745242090367,1e-08,87090.0,87087.0,0.01148277]
[1745242090572,0.05,87117.0,87077.0,0.0471]
[1745242090573,0.0004222,87111.0,87104.0,0.01148052]
[1745242090780,0.00055775,87111.0,87110.0,0.56959476]
[1745242092453,0.00055775,87111.0,87110.0,0.57059476]
[1745242092881,0.00055775,87111.0,87110.0,0.57159476]
[1745242093081,0.00055775,87111.0,87110.0,0.57059476]
[1745242093286,0.12000566,87111.0,87110.0,0.35380348]
[1745242093517,0.12000566,87111.0,87110.0,0.002]
[1745242093518,0.13454651,87111.0,87110.0,0.002]
[1745242093668,0.44567033,87111.0,87110.0,0.002]
[1745242093845,0.33935186,87111.0,87110.0,0.002]
[1745242094305,0.33935186,87111.0,87110.0,0.001]
[1745242094453,0.24417779,87094.0,87093.0,0.0122925]
[1745242094668,0.24417779,87094.0,87073.0,0.24117442]
[1745242094669,0.01148369,87080.0,87075.0,0.01148435]
[1745242094872,0.11944791,87080.0,87076.0,0.01148422]
[1745242095066,0.2296842,87077.0,87074.0,0.001]
[1745242095451,0.00675392,87076.0,87074.0,0.001]
[1745242095693,0.34913242,87076.0,87074.0,0.001]
[1745242095898,0.10582599,87075.0,87074.0,0.001]
[1745242096072,0.2252739,87075.0,87074.0,0.57068968]
[1745242096299,0.2252739,87075.0,87074.0,0.58431318]
[1745242098087,0.2252739,87075.0,87074.0,0.58331318]
[1745242101185,0.10582599,87075.0,87074.0,0.58331318]
[1745242101392,0.09908,87075.0,87074.0,0.58331318]
[1745242101590,0.01148303,87085.0,87082.0,0.01148342]
[1745242101796,0.21852791,87084.0,87080.0,0.35148369]
[1745242102016,0.00557587,87083.0,87081.0,0.01148356]
[1745242102219,0.11944791,87082.0,87081.0,0.5811525]
[1745242102472,0.1250185,87082.0,87081.0,0.5811525]
[1745242102844,0.1250185,87082.0,87081.0,0.35148356]
[1745242103073,0.2240985,87082.0,87081.0,0.35148356]
[1745242103705,0.2250985,87082.0,87081.0,0.35148356]
[1745242104121,0.2250985,87082.0,87081.0,0.34]
[1745242105103,0.2260985,87082.0,87081.0,0.34]
[1745242117564,0.2260985,87082.0,87081.0,0.56967122]
[1745242117767,0.12144791,87082.0,87081.0,0.56967122]
[1745242118007,0.22180791,87082.0,87081.0,0.56967122]
[1745242118361,0.22739422,87082.0,87081.0,0.56967122]
[1745242119616,0.22739422,87082.0,87081.0,0.34]
[1745242129133,0.22739422,87082.0,87071.0,0.01148488]
[1745242129134,0.22968601,87076.0,87072.0,0.01148474]
[1745242129340,0.21980791,87075.0,87072.0,0.01148474]
[1745242129538,0.45506384,87075.0,87072.0,0.02386573]
[1745242129767,0.46654819,87075.0,87072.0,0.02386573]
[1745242129932,0.46654819,87075.0,87072.0,0.01238099]
[1745242130139,0.24117618,87074.0,87071.0,0.34]
[1745242130483,0.12500408,87073.0,87071.0,0.34]
[1745242132117,0.004,87129.0,87089.0,0.56965012]
[1745242132334,0.004,87129.0,87117.0,0.35147881]
[1745242132466,0.004,87129.0,87122.0,0.56956314]
[1745242132665,0.10036,87126.0,87122.0,0.56956314]
[1745242132881,0.0005578,87123.0,87122.0,0.56956314]
[1745242133691,0.1009178,87123.0,87122.0,0.56956314]
[1745242134286,0.1009178,87123.0,87122.0,0.58190383]
[1745242135311,0.1019178,87123.0,87122.0,0.58190383]
[1745242140476,0.1019178,87123.0,87122.0,0.35234069]
[1745242140679,0.22136571,87123.0,87122.0,0.35234069]
[1745242153357,0.1019178,87123.0,87122.0,0.35234069]
[1745242153591,0.0015578,87123.0,87122.0,0.35234069]
[1745242153815,0.1015978,87123.0,87122.0,0.35234069]
[1745242157608,0.0015578,87123.0,87122.0,0.35234069]
[1745242157821,0.1015978,87123.0,87122.0,0.35234069]
[1745242158216,0.22104571,87123.0,87122.0,0.35234069]
[1745242161248,0.12100571,87123.0,87122.0,0.35234069]
[1745242161454,0.1015978,87123.0,87122.0,0.35234069]
[1745242161685,0.1015978,87123.0,87122.0,0.58190383]
[1745242162982,0.1015978,87123.0,87122.0,0.35234069]
[1745242165859,0.22104571,87123.0,87122.0,0.35234069]
[1745242172387,0.12100571,87123.0,87122.0,0.35234069]
[1745242172593,0.22104571,87123.0,87122.0,0.35234069]
[1745242176524,0.22104571,87123.0,87122.0,0.01234069]
[1745242176700,0.01147881,87117.0,87113.0,0.01147934]
[1745242176903,0.01147894,87116.0,87113.0,0.01147934]
[1745242177132,0.0114796,87111.0,87107.0,0.01148013]
[1745242177328,0.2296032,87107.0,87098.0,0.01148131]
[1745242177533,0.22960723,87106.0,87105.0,0.01229131]
[1745242177740,0.01148105,87100.0,87095.0,0.24111446]
[1745242177954,0.09936,87099.0,87097.0,0.24110884]
[1745242178703,0.09936,87099.0,87098.0,0.34]
[1745242180522,0.09936,87099.0,87098.0,0.35242601]
[1745242181754,0.09936,87099.0,87098.0,0.01242601]
[1745242182137,0.09936,87099.0,87097.0,0.24110884]
[1745242182847,0.22962639,87098.0,87090.0,0.22964629]
[1745242183061,0.01148211,87092.0,87088.0,0.24113539]
[1745242183271,0.01148184,87094.0,87090.0,0.22964557]
[1745242183501,0.01148158,87096.0,87092.0,0.24112216]
[1745242183700,0.01148158,87096.0,87093.0,0.34]
[1745242184146,0.2296308,87097.0,87093.0,0.34]
[1745242184357,0.23028909,87099.0,87095.0,0.24111601]
[1745242184562,0.00013555,87097.0,87096.0,0.01148158]
[1745242184763,0.00013555,87097.0,87094.0,0.35148184]
[1745242184947,0.011617,87097.0,87094.0,0.34]
[1745242185359,0.011617,87097.0,87094.0,0.35148184]
[1745242186393,0.00013555,87097.0,87094.0,0.58111655]
[1745242186562,0.00013555,87097.0,87094.0,0.38827857]
[1745242186761,0.00113555,87097.0,87094.0,0.24111655]
[1745242187128,0.00013555,87097.0,87094.0,0.24111655]
[1745242188090,0.00013555,87097.0,87095.0,0.22963197]
[1745242188584,0.06691289,87107.0,87106.0,0.2296053]
[1745242189345,0.01147855,87119.0,87115.0,0.01147907]
[1745242189550,0.0994,87118.0,87115.0,0.01147907]
[1745242189758,0.0994,87118.0,87117.0,0.34]
[1745242190771,0.0994,87118.0,87116.0,0.01147894]
[1745242190977,0.0994,87118.0,87117.0,0.2295742]
[1745242191387,0.1004,87118.0,87117.0,0.5695742]
[1745242192355,0.1014,87118.0,87117.0,0.5695742]
[1745242193311,0.002,87118.0,87117.0,0.5695742]
[1745242193657,0.1014,87118.0,87117.0,0.5695742]
[1745242194889,0.002,87118.0,87117.0,0.5695742]
[1745242195091,0.1014,87118.0,87117.0,0.5695742]
[1745242197818,0.002,87118.0,87117.0,0.5695742]
[1745242197992,0.1014,87118.0,87117.0,0.5695742]
[1745242198417,0.002,87118.0,87117.0,0.5695742]
[1745242198551,0.07780684,87124.0,87123.0,0.34]
[1745242198919,0.07794236,87124.0,87123.0,0.34]
[1745242199145,0.07198236,87124.0,87123.0,0.34]
[1745242199264,0.00013552,87124.0,87123.0,0.34]
[1745242199469,0.1034,87129.0,87126.0,0.01147763]
[1745242199711,0.10385165,87129.0,87128.0,0.34]
[1745242200090,0.00445165,87129.0,87128.0,0.34]
[1745242200469,0.00445165,87129.0,87128.0,0.3864]
[1745242200932,0.00545165,87129.0,87128.0,0.3864]
[1745242201094,0.00645165,87129.0,87128.0,0.3864]
[1745242201304,4e-05,87130.0,87129.0,0.61704469]
[1745242201527,4e-05,87130.0,87129.0,0.7364926]
[1745242201743,4e-05,87130.0,87129.0,0.57818341]
[1745242201935,0.06089597,87153.0,87152.0,0.56948411]
[1745242201936,0.0004219,87153.0,87152.0,0.56948411]
[1745242202396,0.00055731,87153.0,87152.0,0.34]
[1745242202612,0.09991731,87153.0,87152.0,0.34]
[1745242202862,0.00055731,87153.0,87152.0,0.34]
[1745242203042,0.21936522,87153.0,87152.0,0.34]
[1745242203204,0.09991731,87153.0,87152.0,0.35228334]
[1745242204293,0.00055731,87153.0,87152.0,0.35228334]
[1745242204560,0.09991731,87153.0,87152.0,0.35228334]
[1745242205431,0.00055731,87153.0,87152.0,0.35228334]
[1745242205712,0.09991731,87153.0,87152.0,0.35228334]
[1745242206359,0.00055731,87153.0,87152.0,0.35228334]
[1745242206792,0.00055731,87153.0,87152.0,0.36083957]
[1745242208444,0.0004221,87158.0,87155.0,0.35147381]
[1745242208653,0.0004221,87158.0,87157.0,0.56947095]
[1745242209826,0.0014221,87158.0,87157.0,0.56947095]
[1745242210049,0.0004221,87158.0,87157.0,0.56947095]
[1745242210252,0.0014221,87158.0,87157.0,0.56947095]
[1745242212932,0.39913833,87158.0,87157.0,0.34]
[1745242213141,0.39913833,87158.0,87152.0,0.02375754]
[1745242213142,0.24095245,87155.0,87152.0,0.01228334]
[1745242213299,0.01147604,87138.0,87130.0,0.0114771]
[1745242213501,0.22950255,87145.0,87131.0,0.22953942]
[1745242213502,0.10184,87137.0,87131.0,0.22953942]
[1745242213704,0.10184,87137.0,87133.0,0.0114767]
[1745242213909,0.10184,87137.0,87131.0,0.01232826]
[1745242214229,0.24101086,87133.0,87130.0,0.00013541]
[1745242214428,0.11944791,87132.0,87131.0,0.01147697]
[1745242214586,0.34898727,87132.0,87130.0,0.00113541]
[1745242214783,0.34898727,87132.0,87130.0,0.01321058]
[1745242215439,0.34898727,87132.0,87130.0,0.00313541]
[1745242215868,0.01454085,87131.0,87130.0,0.00313541]
[1745242216084,0.13398876,87131.0,87130.0,0.00113541]
[1745242216689,0.13398876,87131.0,87130.0,0.00013541]
[1745242216909,0.17968876,87131.0,87130.0,0.00013541]
[1745242217340,0.17868876,87131.0,87130.0,0.00013541]
[1745242218003,0.17868876,87131.0,87099.0,0.01148118]
[1745242218004,0.22962954,87097.0,87092.0,0.22964051]
[1745242218215,0.2296343,87095.0,87094.0,0.00229585]
[1745242218410,0.34908221,87095.0,87094.0,0.00229585]
[1745242219294,0.34908221,87095.0,87094.0,0.00329585]
[1745242219493,0.36362306,87095.0,87094.0,0.00329585]
[1745242220459,0.36362306,87095.0,87094.0,0.00229585]
[1745242220668,0.36462306,87095.0,87094.0,0.00229585]
[1745242220870,0.41342306,87095.0,87094.0,0.00229585]
[1745242221041,0.41242306,87095.0,87094.0,0.00229585]
[1745242221244,0.41442306,87095.0,87094.0,0.00329585]
[1745242221449,0.51626306,87095.0,87094.0,0.00329585]
[1745242221666,0.51426306,87095.0,87094.0,0.00329585]
[1745242221880,0.51626306,87095.0,87094.0,0.00229585]
[1745242222045,0.51726306,87095.0,87094.0,0.00229585]
[1745242222257,0.51526306,87095.0,87094.0,0.00229585]
[1745242222748,0.51426306,87095.0,87094.0,0.00229585]
[1745242222997,0.51626306,87095.0,87094.0,0.00229585]
[1745242223640,0.51926306,87095.0,87094.0,0.00229585]
[1745242223856,0.24423581,87072.0,87071.0,0.00384381]
[1745242224067,0.46556372,87072.0,87071.0,0.00397933]
[1745242225343,0.46756372,87072.0,87071.0,0.00397933]
[1745242225490,0.46856372,87072.0,87071.0,0.00397933]
[1745242225719,0.51426372,87072.0,87071.0,0.00397933]
[1745242225897,0.56416372,87072.0,87071.0,0.00397933]
[1745242226547,0.56216372,87072.0,87071.0,0.00397933]
[1745242226902,0.39425692,87064.0,87063.0,0.0008438]
[1745242227104,0.51370483,87064.0,87063.0,0.00097935]
[1745242227747,0.55940483,87064.0,87063.0,0.00097935]
[1745242227956,0.56240483,87064.0,87063.0,0.00097935]
[1745242228424,0.56340483,87064.0,87063.0,0.00097935]
[1745242229025,0.56240483,87064.0,87063.0,0.00097935]
[1745242229246,0.56340483,87064.0,87063.0,0.00097935]
[1745242230315,0.56040483,87064.0,87063.0,0.00097935]
[1745242230638,0.56140483,87064.0,87063.0,0.00097935]
[1745242230835,0.56040483,87064.0,87063.0,0.00097935]
[1745242231242,0.56240483,87064.0,87063.0,0.00097935]
[1745242231446,0.56340483,87064.0,87063.0,0.00097935]
[1745242231646,0.66532483,87064.0,87063.0,0.00097935]
[1745242232062,0.24426747,87060.0,87059.0,0.000844]
[1745242232307,0.36371538,87060.0,87059.0,0.00097957]
[1745242233548,0.36571538,87060.0,87059.0,0.00097957]
[1745242233683,0.36371538,87060.0,87059.0,0.00097957]
[1745242233884,0.36471538,87060.0,87059.0,0.00097957]
[1745242234128,0.46663538,87060.0,87059.0,0.00097957]
[1745242234476,0.29421498,87042.0,87041.0,0.0048436]
[1745242234682,0.41366289,87042.0,87041.0,0.0048436]
[1745242234892,0.39432026,87040.0,87039.0,0.0008442]
[1745242235096,0.24432818,87037.0,87036.0,0.0008442]
[1745242235310,0.36377609,87037.0,87036.0,0.0008442]
[1745242236340,0.36377609,87037.0,87036.0,1e-08]
[1745242236496,0.39434666,87030.0,87016.0,0.0008438]
[1745242236699,0.39434666,87030.0,87029.0,0.0009063]
[1745242236700,0.51379457,87030.0,87029.0,0.0009063]
[1745242236898,0.01454085,87029.0,87016.0,0.0008438]
[1745242237073,0.51254876,87029.0,87028.0,1e-08]
[1745242237677,0.61450876,87029.0,87028.0,1e-08]
[1745242238093,0.59996791,87029.0,87028.0,1e-08]
[1745242238319,0.60196791,87029.0,87028.0,0.34000001]
[1745242238495,0.48252,87029.0,87028.0,0.34100001]
[1745242239542,0.48452,87029.0,87028.0,0.34100001]
[1745242239877,0.48252,87029.0,87028.0,0.34100001]
[1745242240046,0.48052,87029.0,87028.0,0.34100001]
[1745242240382,0.48052,87029.0,87028.0,0.34817161]
[1745242240807,0.48052,87029.0,87028.0,0.34100001]
[1745242241341,0.48052,87029.0,87028.0,0.34200001]
[1745242241690,0.48052,87029.0,87028.0,0.35117146]
[1745242242421,0.37856,87029.0,87028.0,0.35117146]
[1745242246761,0.00013521,87030.0,87029.0,0.56980845]
[1745242247164,0.00013521,87030.0,87029.0,0.5769799]
[1745242247755,0.00013521,87030.0,87029.0,0.5779799]
[1745242248532,0.15,87071.0,87060.0,0.56972662]
[1745242248752,0.10304,87066.0,87065.0,0.56971343]
[1745242249161,0.0452,87089.0,87071.0,0.5696976]
[1745242249342,0.10304,87078.0,87077.0,0.56968177]
[1745242249748,0.09199304,87085.0,87082.0,0.01148342]
[1745242249886,0.00013563,87085.0,87084.0,0.56966331]
[1745242250290,0.00013563,87085.0,87084.0,0.57683476]
[1745242250784,0.00013563,87085.0,87084.0,0.56966331]
[1745242251219,0.00013563,87085.0,87084.0,0.73991122]
[1745242251423,0.00013563,87085.0,87084.0,0.73891122]
[1745242252180,0.00013563,87085.0,87084.0,0.56966331]
[1745242252769,0.00013563,87085.0,87084.0,0.57166331]
[1745242253649,0.00013563,87085.0,87084.0,0.69111122]
[1745242253854,0.00013563,87085.0,87084.0,0.69311122]
[1745242254056,1e-08,87085.0,87084.0,0.69311122]
[1745242254685,0.103,87123.0,87098.0,0.56962639]
[1745242254892,0.103,87123.0,87116.0,0.56957895]
[1745242255111,0.004,87129.0,87128.0,0.56954733]
[1745242255557,0.00445205,87129.0,87128.0,0.56954733]
[1745242255752,0.00445205,87129.0,87128.0,0.58192123]
[1745242256171,0.09185741,87148.0,87145.0,0.01147512]
[1745242256391,0.10296,87150.0,87148.0,0.34]
[1745242256601,0.0004221,87158.0,87151.0,0.56948675]
[1745242257018,0.00055775,87152.0,87151.0,0.56948675]
[1745242257882,0.00055775,87152.0,87151.0,0.57664696]
[1745242258092,0.00055775,87152.0,87151.0,0.69609487]
[1745242259006,0.00055775,87152.0,87151.0,0.70489811]
[1745242259413,0.00155775,87152.0,87151.0,0.70948311]
[1745242259769,0.00055775,87152.0,87151.0,0.71148311]
[1745242259977,0.00055775,87152.0,87151.0,0.71248311]
[1745242260382,0.00055775,87152.0,87151.0,0.35474521]
[1745242260584,0.00055775,87152.0,87151.0,0.343]
[1745242260788,0.23004186,87152.0,87151.0,0.003]
[1745242260991,0.34948977,87152.0,87151.0,0.003]
[1745242261314,0.34948977,87152.0,87151.0,0.002]
[1745242261658,0.24098347,87143.0,87138.0,0.01147604]
[1745242262059,0.24099004,87141.0,87135.0,0.34]
[1745242262264,0.24099004,87141.0,87133.0,0.2410094]
[1745242262471,0.01147697,87131.0,87124.0,0.01147789]
[1745242262653,0.01147618,87137.0,87128.0,0.2533984]
[1745242262854,0.0114767,87133.0,87128.0,0.01147736]
[1745242263186,0.0114767,87133.0,87125.0,0.24103219]
[1745242263187,0.22953816,87132.0,87125.0,0.24103219]
[1745242263388,0.22954351,87130.0,87125.0,0.01147776]
[1745242263589,0.01147868,87118.0,87112.0,0.034404]
[1745242263817,0.22956603,87121.0,87114.0,0.01147921]
[1745242264018,0.01147815,87122.0,87112.0,0.04641673]
[1745242264019,0.24106214,87115.0,87112.0,0.04641673]
[1745242264193,0.22958685,87113.0,87112.0,0.034404]
[1745242264419,0.22958685,87113.0,87107.0,0.01198596]
[1745242264420,0.11944791,87113.0,87107.0,0.01198596]
[1745242264644,0.10292,87115.0,87111.0,0.0114796]
[1745242264859,0.10292,87115.0,87114.0,0.56958422]
[1745242265090,0.10392,87130.0,87127.0,0.22954932]
[1745242265328,0.001,87130.0,87127.0,0.01147749]
[1745242265538,0.00110885,87130.0,87129.0,0.34]
[1745242265765,0.00010885,87130.0,87129.0,0.46660966]
[1745242266858,0.00010885,87130.0,87129.0,0.46760966]
[1745242267053,0.00010885,87130.0,87129.0,0.46660966]
[1745242267357,0.00010885,87130.0,87129.0,0.46760966]
[1745242267554,0.00010885,87130.0,87129.0,0.46660966]
[1745242268163,0.00010885,87130.0,87129.0,0.46960966]
[1745242268598,0.00010885,87130.0,87129.0,0.46660966]
[1745242268861,0.00010885,87130.0,87129.0,0.46860966]
[1745242269084,0.00010885,87130.0,87129.0,0.46960966]
[1745242271763,0.00010885,87130.0,87129.0,0.50400466]
[1745242272185,0.00010885,87130.0,87129.0,0.50500466]
[1745242272390,0.00010885,87130.0,87129.0,0.38555675]
[1745242272836,0.00010885,87130.0,87129.0,0.01116175]
[1745242273251,0.00010885,87130.0,87129.0,0.35345699]
[1745242273389,0.00010885,87130.0,87129.0,0.35116175]
[1745242273868,0.00010885,87130.0,87129.0,0.35016175]
[1745242274190,0.00010885,87130.0,87129.0,0.34816175]
[1745242274691,0.00010885,87130.0,87129.0,0.46760966]
[1745242275253,0.00010885,87130.0,87129.0,0.46860966]
[1745242275882,0.1041822,87152.0,87151.0,0.56948675]
[1745242276238,0.1041822,87152.0,87151.0,0.5766485]
[1745242276239,0.10429101,87152.0,87151.0,0.5766485]
[1745242277210,0.00053101,87152.0,87151.0,0.5766485]
[1745242277417,0.00253101,87152.0,87151.0,0.5766485]
[1745242277705,0.00453101,87152.0,87151.0,0.5766485]
[1745242278006,0.00453101,87152.0,87151.0,0.56948675]
[1745242279817,0.00453101,87152.0,87151.0,0.34]
[1745242280033,0.01147631,87136.0,87131.0,0.01147697]
[1745242280233,0.01147565,87141.0,87136.0,0.01147631]
[1745242280469,0.01147552,87142.0,87138.0,0.01147604]
[1745242280669,0.24096763,87149.0,87142.0,0.22950826]
[1745242280874,0.01147525,87144.0,87141.0,0.01147565]
[1745242281127,0.11944791,87143.0,87141.0,0.01147565]
[1745242281327,0.11944791,87143.0,87140.0,0.01147578]
[1745242282333,0.34895583,87143.0,87140.0,0.01147578]
[1745242282548,0.11944791,87143.0,87140.0,0.01147578]
[1745242282775,0.12044791,87143.0,87140.0,0.01147578]
[1745242282998,0.12044791,87143.0,87142.0,0.34]
[1745242283223,0.001,87143.0,87142.0,0.34]
[1745242283444,0.001,87149.0,87148.0,0.56949465]
[1745242283911,0.0004221,87158.0,87151.0,0.56948675]
[1745242285644,0.0004221,87158.0,87151.0,0.57048675]
[1745242285855,0.0004221,87158.0,87151.0,0.57148675]
[1745242288144,0.01147381,87155.0,87151.0,0.342]
[1745242288349,0.16717892,87152.0,87151.0,0.002]
[1745242288921,0.18171977,87152.0,87151.0,0.001]
[1745242289124,0.01147446,87150.0,87142.0,0.22950927]
[1745242289333,0.11944791,87149.0,87145.0,0.01147512]
[1745242289540,0.11944791,87149.0,87148.0,0.22949465]
[1745242289735,0.00153101,87152.0,87151.0,0.22948675]
[1745242289936,0.00153101,87152.0,87151.0,0.56948675]
[1745242290143,0.00253101,87152.0,87151.0,0.56948675]
[1745242290898,0.00153101,87152.0,87151.0,0.56948675]
[1745242291211,0.00253101,87152.0,87151.0,0.56948675]
[1745242291461,0.00153101,87152.0,87151.0,0.56948675]
[1745242292323,0.00253101,87152.0,87151.0,0.56948675]
[1745242293516,0.00253101,87152.0,87151.0,0.57048675]
[1745242293796,0.004,87159.0,87157.0,0.56947095]
[1745242295519,0.0502,87159.0,87157.0,0.34]
[1745242295938,0.004,87159.0,87157.0,0.34]
[1745242296532,0.34933833,87158.0,87157.0,0.34]
[1745242296733,0.22948411,87152.0,87151.0,0.001]
[1745242296992,0.11944791,87152.0,87151.0,0.001]
[1745242297198,0.11944791,87152.0,87151.0,0.57048675]
[1745242297414,0.11944791,87152.0,87151.0,0.341]
[1745242297633,0.11944791,87152.0,87151.0,0.001]
[1745242298002,0.28574876,87152.0,87151.0,0.001]
[1745242298966,0.28578876,87152.0,87151.0,0.001]
[1745242299175,0.29079461,87152.0,87151.0,0.001]
[1745242299423,0.29179461,87152.0,87151.0,0.001]
[1745242300113,0.01147446,87150.0,87142.0,0.22950826]
[1745242300365,0.24096938,87148.0,87143.0,0.0115842]
[1745242300597,0.11944791,87147.0,87143.0,0.0115842]
[1745242300832,0.22950518,87144.0,87143.0,0.00010881]
[1745242301066,0.11944791,87144.0,87143.0,0.00010881]
[1745242301296,0.12682902,87144.0,87143.0,0.00010881]
[1745242302177,0.12782902,87144.0,87143.0,0.00010881]
[1745242303240,0.001,87144.0,87143.0,0.56961663]
[1745242304525,0.001,87144.0,87143.0,0.57061663]
[1745242304730,0.001,87144.0,87143.0,0.57161663]
[1745242304940,0.001,87144.0,87143.0,0.57620163]
[1745242305136,0.001,87144.0,87143.0,0.57420163]
[1745242305343,0.00104,87144.0,87143.0,0.57820163]
[1745242306169,0.00104,87144.0,87143.0,0.57620163]
[1745242307202,0.00104,87144.0,87143.0,0.57420163]
[1745242307412,0.00104,87144.0,87143.0,0.57520163]
[1745242307615,0.00104,87144.0,87143.0,0.57620163]
[1745242309997,0.00104,87144.0,87143.0,0.58498195]
[1745242312449,4e-05,87152.0,87151.0,0.56948675]
[1745242314570,4e-05,87152.0,87151.0,0.57048675]
[1745242314724,4e-05,87152.0,87151.0,0.62048675]
[1745242315098,0.0004222,87176.0,87165.0,0.56944989]
[1745242315623,0.0004222,87176.0,87165.0,0.57403489]
[1745242316049,0.0004222,87176.0,87165.0,0.58119374]
[1745242317438,0.24131619,87176.0,87165.0,0.58119374]
[1745242317642,0.0453,87170.0,87165.0,0.57660874]
[1745242318097,0.0453,87170.0,87165.0,0.57760874]
[1745242318317,0.0453,87170.0,87165.0,0.00815885]
[1745242318521,0.0014222,87166.0,87165.0,0.23760874]
[1745242318728,0.36485822,87166.0,87165.0,0.00815885]
[1745242319089,0.36485822,87166.0,87151.0,0.001]
[1745242319090,0.33732496,87152.0,87151.0,0.001]
[1745242319273,0.45677287,87152.0,87151.0,0.001]
[1745242319947,0.01147657,87134.0,87121.0,0.01147828]
[1745242320167,0.24105169,87119.0,87113.0,0.02295734]
[1745242320380,0.22316791,87133.0,87130.0,0.0114771]
[1745242320585,0.22316791,87133.0,87131.0,0.22953942]
[1745242320797,0.01147842,87120.0,87113.0,0.22958669]
[1745242321006,0.22957944,87116.0,87111.0,0.011478]
[1745242321215,0.11944791,87115.0,87114.0,0.00045205]
[1745242321429,0.3795974,87109.0,87108.0,0.0008442]
[1745242321634,0.3795974,87109.0,87101.0,0.004]
[1745242321635,0.51052518,87109.0,87101.0,0.004]
[1745242321839,0.49479727,87109.0,87108.0,0.00010885]
[1745242322042,0.46424518,87109.0,87108.0,0.00010885]
[1745242322255,0.01148092,87101.0,87094.0,0.04891076]
[1745242322486,0.01148145,87097.0,87092.0,0.01148211]
[1745242322687,0.11944791,87096.0,87092.0,0.01148211]
[1745242322893,0.01148171,87095.0,87091.0,0.34]
[1745242323102,0.11944791,87094.0,87091.0,0.01148224]
[1745242323312,0.11944791,87094.0,87089.0,0.3514825]
[1745242323524,0.11944791,87094.0,87092.0,0.22964221]
[1745242323728,0.11944791,87094.0,87091.0,0.01148224]
[1745242324250,0.11944791,87094.0,87089.0,0.3514825]
[1745242324251,0.01454085,87091.0,87089.0,0.34]
[1745242324459,0.01148342,87082.0,87070.0,0.24118317]
[1745242324672,0.02602507,87076.0,87069.0,0.01148514]
[1745242324880,0.11944791,87075.0,87072.0,0.24117856]
[1745242325089,0.01454085,87093.0,87091.0,0.24112642]
[1745242325301,0.01454085,87091.0,87089.0,0.0114825]
[1745242325535,0.11944791,87090.0,87086.0,0.34]
[1745242325737,0.13093028,87090.0,87086.0,0.34]
[1745242325953,0.0114825,87089.0,87086.0,0.34]
[1745242326161,0.11944791,87088.0,87086.0,0.34]
[1745242326375,0.02602362,87087.0,87084.0,0.34]
[1745242326585,0.02602362,87087.0,87071.0,0.01582692]
[1745242326586,0.01148422,87076.0,87071.0,0.01582692]
[1745242326810,0.01454085,87072.0,87071.0,0.004]
[1745242327025,0.33354876,87072.0,87071.0,0.004]
[1745242327853,0.45299667,87072.0,87071.0,0.004]
[1745242328055,0.33354876,87072.0,87071.0,0.004]
[1745242328256,0.48354876,87072.0,87071.0,0.00413563]
[1745242328459,0.37978876,87072.0,87071.0,0.00413563]
[1745242328660,0.48454876,87072.0,87071.0,0.00413563]
[1745242328861,0.33454876,87072.0,87071.0,0.00413563]
[1745242329401,0.12144791,87072.0,87071.0,0.00413563]
[1745242329803,0.12044791,87072.0,87071.0,0.57383323]
[1745242330019,0.12144791,87072.0,87071.0,0.34413563]
[1745242330221,0.12344791,87072.0,87071.0,0.34413563]
[1745242330619,0.22704791,87072.0,87071.0,0.00413563]
[1745242331653,0.24158876,87072.0,87071.0,0.00413563]
[1745242333908,0.24158876,87072.0,87071.0,0.57383323]
[1745242333909,0.004,87072.0,87071.0,0.57383323]
[1745242334942,0.002,87072.0,87071.0,0.57383323]
[1745242335325,0.003,87072.0,87071.0,0.57383323]
[1745242336055,0.001,87072.0,87071.0,0.57383323]
[1745242336454,0.002,87072.0,87071.0,0.57383323]
[1745242339288,0.12044791,87072.0,87071.0,0.00413563]
[1745242339510,0.35014287,87072.0,87071.0,0.00413563]
[1745242339721,0.34914287,87072.0,87071.0,0.00413563]
[1745242339921,0.36368372,87072.0,87071.0,0.00413563]
[1745242340130,0.11944791,87072.0,87071.0,0.34413563]
[1745242340338,0.1036,87079.0,87075.0,0.01148435]
[1745242340540,0.13093186,87078.0,87075.0,0.01148435]
[1745242340965,0.22968868,87075.0,87071.0,0.00413563]